lending/lending_fUSD_20241211
["ID","MTS","AMOUNT","RATE_DAILY","PERIOD"]
[344923438,1733883047026,-989.04,0.0001083,2]
[344923439,1733883047036,-150.0,0.0001084,2]
[344923440,1733883047046,-150.0,0.00010849,2]
[344923441,1733883047055,-150.0,0.00010867,2]
[344923442,1733883047065,-150.0,0.00010874,2]
[344923443,1733883047075,-500.0,0.00010877,2]
[344923444,1733883047084,-500.0,0.00010877,2]
[344923445,1733883047093,-500.0,0.00010877,2]
[344923446,1733883047103,-2791.66676436,0.00010885,2]
[344923447,1733883047112,-211.17279508,0.00010885,2]
[344923448,1733883047121,-1582.89824486,0.00010885,2]
[344923449,1733883047130,-150.0,0.00010888,2]
[344923450,1733883047140,-3000.0,0.0001089,2]
[344923451,1733883047149,-150.0,0.00010899,2]
[344923452,1733883047158,-12573.30808452,0.000109,2]
[344923453,1733883047167,-963.454,0.00010911,2]
[344923454,1733883047177,-12573.30808445,0.00010911,2]
[344923455,1733883047187,-12573.30808445,0.00010922,2]
[344923456,1733883047196,-150.0,0.00010923,2]
[344923457,1733883047205,-150.0,0.00010925,2]
[344923458,1733883047214,-12573.30808445,0.00010933,2]
[344923459,1733883047223,-2791.66676436,0.00010943,2]
[344923460,1733883047233,-12573.30808445,0.00010944,2]
[344923461,1733883047242,-150.0,0.00010948,2]
[344923462,1733883047252,-12573.30808445,0.00010956,2]
[344923463,1733883047262,-150.0,0.00010957,2]
[344923464,1733883047279,-500.0,0.00010958,2]
[344923465,1733883047289,-346.91713843,0.00010958,2]
[344923466,1733883047300,-500.0,0.00010966,2]
[344923467,1733883047310,-500.0,0.00010966,2]
[344923468,1733883047324,-500.0,0.00010966,2]
[344923469,1733883047333,-500.0,0.00010966,2]
[344923470,1733883047342,-588.1,0.00010966,2]
[344923471,1733883047352,-964.51,0.00010966,2]
[344923472,1733883047361,-628.12,0.00010966,2]
[344923473,1733883047371,-906.82,0.00010966,2]
[344923474,1733883047380,-500.0,0.00010966,2]
[344923475,1733883047390,-4488.52,0.00010966,2]
[344923476,1733883047400,-500.0,0.00010966,2]
[344923477,1733883047409,-567.48,0.00010966,2]
[344923478,1733883047419,-500.0,0.00010966,2]
[344923479,1733883047428,-689.29,0.00010966,2]
[344923480,1733883047438,-500.0,0.00010966,2]
[344923481,1733883047448,-500.0,0.00010966,2]
[344923482,1733883047458,-12573.30808445,0.00010967,2]
[344923483,1733883047469,-150.0,0.00010973,2]
[344923484,1733883047478,-258.15868924,0.00010973,2]
[344923485,1733883047489,-12573.30808445,0.00010978,2]
[344923486,1733883047499,-300.0,0.00010984,2]
[344923487,1733883047508,-300.0,0.00010984,2]
[344923488,1733883047524,-300.0,0.00010984,2]
[344923489,1733883047534,-300.0,0.00010984,2]
[344923490,1733883047544,-300.0,0.00010984,2]
[344923491,1733883047553,-300.0,0.00010984,2]
[344923492,1733883047563,-300.0,0.00010984,2]
[344923493,1733883047572,-300.0,0.00010984,2]
[344923494,1733883047582,-300.0,0.00010984,3]
[344923495,1733883047592,-300.0,0.00010984,3]
[344923496,1733883047602,-300.0,0.00010984,3]
[344923497,1733883047611,-300.0,0.00010984,3]
[344923498,1733883047620,-300.0,0.00010984,3]
[344923499,1733883047630,-300.0,0.00010984,3]
[344923500,1733883047639,-300.0,0.00010984,3]
[344923501,1733883047648,-300.0,0.00010984,3]
[344923502,1733883047658,-300.0,0.00010984,3]
[344923503,1733883047667,-169.50549817,0.00010984,3]
[344923504,1733883047676,-517157.01296886,0.00010985,2]
[344923505,1733883047689,-3570.30000001,0.00010985,2]
[344923507,1733883282654,350.0,0.00021,120]
[344923508,1733883332194,665.0,0.00021,120]
[344923517,1733883423663,10956.77619335,0.00021,120]
[344923521,1733883920665,2220.81,9.129e-05,2]
[344923526,1733883937394,5000.0,8e-05,2]
[344923536,1733883961072,-678.58,9.602e-05,2]
[344923537,1733883968051,750.78932735,7e-05,2]
[344923538,1733883970874,508.84,8.219e-05,2]
[344923539,1733883982854,150.0,0.00021,120]
[344923540,1733883983551,150.0,0.00021,120]
[344923541,1733883984370,150.0,0.00021,120]
[344923542,1733883986551,150.0,0.00021,120]
[344923547,1733884043511,1894.19,9.1e-05,2]
[344923558,1733884139225,364.56,9.125e-05,2]
[344923594,1733884232176,-937.16,9.602e-05,2]
[344923595,1733884232186,-300.0,9.61e-05,2]
[344923596,1733884232195,-1254.02,9.611e-05,2]
[344923597,1733884232205,-1282.87434732,9.611e-05,2]
[344923598,1733884232214,-150.67,9.634e-05,2]
[344923599,1733884232223,-300.0,9.653e-05,2]
[344923600,1733884232233,-250.0,9.663e-05,2]
[344923601,1733884232243,-357.97,9.687e-05,2]
[344923602,1733884232252,-24445.01732058,9.801e-05,2]
[344923603,1733884232264,-3030.9263894,9.801e-05,2]
[344923604,1733884232276,-7560.00000004,9.801e-05,2]
[344923605,1733884232287,-1592.9136299,9.801e-05,2]
[344923606,1733884232307,-2401.625,9.801e-05,2]
[344923607,1733884232319,-857.250015,9.801e-05,2]
[344923608,1733884232333,-38604.26764508,9.801e-05,2]
[344923609,1733884232345,-168.37,9.821e-05,2]
[344923610,1733884232354,-2538.88,9.826e-05,2]
[344923611,1733884232364,-200.0,9.857e-05,2]
[344923612,1733884232374,-1500.0,9.894e-05,2]
[344923613,1733884232383,-2000.0,9.93e-05,2]
[344923614,1733884232393,-1000.0,9.94e-05,2]
[344923615,1733884232402,-1372.85,9.95e-05,2]
[344923616,1733884232412,-261.09550531,9.973e-05,2]
[344923617,1733884232423,-500.55979355,9.973e-05,2]
[344923618,1733884232433,-159.732619,9.973e-05,2]
[344923619,1733884232443,-1144.05,9.985e-05,2]
[344923620,1733884232453,-250.0,9.985e-05,2]
[344923621,1733884232462,-150.0,9.986e-05,2]
[344923622,1733884232471,-150.0,9.986e-05,2]
[344923623,1733884232481,-150.0,9.986e-05,2]
[344923624,1733884232491,-150.89321433,9.986e-05,2]
[344923625,1733884232500,-150.0,9.986e-05,2]
[344923626,1733884232510,-299.61215141,9.986e-05,2]
[344923627,1733884232520,-150.0,9.998e-05,2]
[344923628,1733884232529,-150.0,9.998e-05,2]
[344923629,1733884232539,-150.0,9.998e-05,2]
[344923630,1733884232548,-150.0,9.998e-05,2]
[344923631,1733884232558,-150.0,9.998e-05,2]
[344923632,1733884232567,-150.0,9.998e-05,2]
[344923633,1733884232579,-150.0,9.998e-05,2]
[344923634,1733884232590,-150.0,9.998e-05,3]
[344923635,1733884232600,-150.0,9.998e-05,3]
[344923636,1733884232610,-150.0,9.998e-05,3]
[344923637,1733884232620,-150.0,9.998e-05,3]
[344923638,1733884232629,-150.0,9.998e-05,3]
[344923639,1733884232640,-150.0,9.998e-05,3]
[344923640,1733884232649,-150.0,9.998e-05,3]
[344923641,1733884232658,-500.0,9.999e-05,2]
[344923642,1733884232668,-500.0,9.999e-05,2]
[344923643,1733884232677,-500.0,9.999e-05,2]
[344923644,1733884232688,-500.0,9.999e-05,2]
[344923645,1733884232698,-500.0,9.999e-05,2]
[344923646,1733884232708,-492.61805848,9.999e-05,2]
[344923647,1733884232718,-31540.06381284,0.0001,2]
[344923648,1733884232744,-472.5,0.0001,2]
[344923649,1733884232756,-430.24377552,0.0001,2]
[344923658,1733884238101,-13727.23172131,0.0001,2]
[344923659,1733884238113,-48296.46347072,0.0001,2]
[344923660,1733884238126,-148158.46288212,0.0001,2]
[344923661,1733884238471,-852.99136144,0.0001,2]
[344923663,1733884240319,-260.768959,0.0001,2]
[344923664,1733884240331,-190704.49043686,0.0001,2]
[344923666,1733884243426,-3959.12652817,0.0001,2]
[344923667,1733884243440,-674.01485534,0.0001,2]
[344923668,1733884243451,-268.13583273,0.0001,2]
[344923671,1733884243463,-1181.43300001,0.0001,2]
[344923673,1733884243577,-1745.2,0.0001,2]
[344923674,1733884243591,-1156.7300001,0.0001,2]
[344923675,1733884243759,-588.89237632,0.0001,2]
[344923676,1733884243771,-14014.36209851,0.0001,2]
[344923677,1733884243782,-18293.38445,0.0001,2]
[344923678,1733884243952,-4175.77007003,0.0001,2]
[344923679,1733884243965,-6976.5,0.0001,2]
[344923704,1733884246022,-271.1951,0.0001,2]
[344923706,1733884246034,-491936.40404068,0.0001,2]
[344923720,1733884246154,-1851.63147196,0.0001,2]
[344923722,1733884246166,-1224.73989343,0.0001,2]
[344923724,1733884246178,-3976.22091205,0.0001,2]
[344923726,1733884246189,-1136.800025,0.0001,2]
[344923727,1733884246286,-6830.000002,0.0001,2]
[344923728,1733884246298,-3128.97712188,0.0001,2]
[344923729,1733884246309,-1318.96484574,0.0001,2]
[344923730,1733884246321,-8809.2963013,0.0001,2]
[344923731,1733884246332,-6540.00002,0.0001,2]
[344923732,1733884246350,-588.94,0.0001,2]
[344923734,1733884549218,-1000.0,0.00022,120]
[344923735,1733884549251,-500.0,0.00022024,120]
[344923736,1733884549282,-2000.0,0.00022481,120]
[344923737,1733884549314,-500.0,0.00022657,120]
[344923738,1733884549358,-227.178804,0.00022657,120]
[344923739,1733884549395,-2501.78955287,0.00023,120]
[344923740,1733884549431,-1000.0,0.00023,120]
[344923741,1733884557842,-1288.44003908,0.00023014,120]
[344923742,1733884557873,-2000.0,0.00023014,120]
[344923743,1733884557905,-2000.0,0.00023014,120]
[344923744,1733884557936,-2000.0,0.00023014,120]
[344923745,1733884557966,-2000.0,0.00023014,120]
[344923746,1733884557997,-2000.0,0.00023014,120]
[344923747,1733884558026,-2000.0,0.00023014,120]
[344923748,1733884558057,-2000.0,0.00023014,120]
[344923749,1733884558088,-2000.0,0.00023014,120]
[344923750,1733884558120,-2000.0,0.00023313,120]
[344923751,1733884558150,-500.0,0.00023365,120]
[344923752,1733884558181,-1000.0,0.00024,120]
[344923753,1733884565830,-996.0,0.0002,90]
[344923754,1733884569864,150.0,0.00023,120]
[344923755,1733884570756,150.0,0.00023,120]
[344923756,1733884571193,150.0,0.00023,120]
[344923757,1733884571603,150.0,0.00023,120]
[344923758,1733884572012,150.0,0.00023,120]
[344923759,1733884572445,150.0,0.00023,120]
[344923760,1733884575243,-152.0,0.0001436,30]
[344923761,1733884575275,-152.0,0.00014402,31]
[344923762,1733884575306,-152.0,0.00014445,32]
[344923763,1733884575336,-152.0,0.00014488,33]
[344923764,1733884575367,-61.0151765,0.000145,30]
[344923765,1733884575397,-152.0,0.0001453,34]
[344923766,1733884575426,-152.0,0.00014573,35]
[344923767,1733884575455,-152.0,0.00014615,36]
[344923768,1733884575488,-152.0,0.00014658,37]
[344923769,1733884575520,-152.0,0.00014701,38]
[344923770,1733884575550,-152.0,0.00014743,39]
[344923771,1733884575581,-152.0,0.00014786,40]
[344923772,1733884575615,-152.0,0.00014828,41]
[344923773,1733884575646,-152.0,0.00014871,42]
[344923774,1733884575677,-152.0,0.00014914,43]
[344923775,1733884575707,-152.0,0.00014956,44]
[344923776,1733884575737,-152.0,0.00014999,45]
[344923777,1733884575767,-152.0,0.00015041,46]
[344923778,1733884575798,-152.0,0.00015084,47]
[344923779,1733884575827,-152.0,0.00015127,48]
[344923780,1733884575861,-152.0,0.00015169,49]
[344923781,1733884575891,-152.0,0.00015212,50]
[344923782,1733884575921,-152.0,0.00015254,51]
[344923783,1733884575951,-152.0,0.00015256,53]
[344923784,1733884575982,-152.0,0.00015297,54]
[344923785,1733884576011,-152.0,0.00015297,52]
[344923786,1733884576048,-1365.41,0.00016658,30]
[344923787,1733884576078,-15031.0,0.00016658,30]
[344923788,1733884576119,-1010.49979013,0.000189,30]
[344923789,1733884576155,-1365.41,0.00019242,30]
[344923790,1733884576189,-481.22416394,0.0002,30]
[344923791,1733884576227,-1365.41,0.00021826,30]
[344923792,1733884576305,-152.0,0.00022,30]
[344923793,1733884576339,-152.0,0.00022,30]
[344923794,1733884576372,-152.0,0.00022,30]
[344923795,1733884576404,-152.0,0.00022,30]
[344923796,1733884576436,-61.0151765,0.00022,30]
[344923797,1733884576479,-152.0,0.00022,30]
[344923798,1733884576513,-152.0,0.00022,30]
[344923799,1733884576547,-152.0,0.00022,30]
[344923800,1733884576578,-152.0,0.00022,30]
[344923801,1733884576613,-152.0,0.00022,30]
[344923802,1733884576652,-152.0,0.00022,30]
[344923803,1733884576704,-152.0,0.00022,30]
[344923804,1733884576741,-152.0,0.00022,30]
[344923805,1733884576773,-152.0,0.00022,30]
[344923806,1733884576829,-152.0,0.00022,30]
[344923807,1733884576865,-152.0,0.00022,30]
[344923808,1733884576897,-152.0,0.00022,30]
[344923809,1733884576929,-152.0,0.00022,30]
[344923810,1733884576960,-152.0,0.00022,30]
[344923811,1733884576990,-152.0,0.00022,30]
[344923812,1733884577021,-152.0,0.00022,30]
[344923813,1733884577259,-152.0,0.00022,30]
[344923814,1733884577291,-152.0,0.00022,30]
[344923815,1733884577325,-152.0,0.00022,30]
[344923816,1733884577355,-152.0,0.00022,30]
[344923817,1733884577388,-152.0,0.00022,30]
[344923818,1733884577425,-1365.41,0.00022,30]
[344923819,1733884577470,-15031.0,0.00022,30]
[344923820,1733884577502,-1010.49979013,0.00022,30]
[344923821,1733884577535,-1365.41,0.00022,30]
[344923822,1733884577566,-481.22416394,0.00022,30]
[344923823,1733884577596,-1365.41,0.00022,30]
[344923824,1733884577626,-51040.06173886,0.00022,30]
[344923825,1733884596997,-5100.0,0.00011,10]
[344923826,1733884597019,-5100.0,0.00011,11]
[344923827,1733884621131,-5100.0,0.00011,7]
[344923828,1733884621154,-5100.0,0.00011,9]
[344923829,1733884633549,-759.0,0.00024,60]
[344923830,1733884642479,-588.31786826,0.00012,10]
[344923831,1733884810573,250.0,9.286e-05,2]
[344923832,1733884906987,516.98,8.219e-05,2]
[344923833,1733884951093,250.0,9.327e-05,2]
[344923834,1733884993336,500.0,0.00023898,120]
[344923835,1733884997305,2000.0,0.00022265,120]
[344923836,1733884997723,2000.0,0.00023992,120]
[344923837,1733885007299,500.0,0.00023898,120]
[344923838,1733885044064,1922.12011374,0.00024,61]
[344923839,1733885072804,15417.0,9.275e-05,2]
[344923841,1733885303125,250.0,9.221e-05,2]
[344923852,1733885355773,1500.0,9.322e-05,2]
[344923868,1733885432412,-1000.0,9.557e-05,2]
[344923869,1733885432422,-989.21,9.568e-05,2]
[344923870,1733885432432,-993.24,9.608e-05,2]
[344923871,1733885432443,-1944.94299384,9.608e-05,2]
[344923872,1733885432452,-240.66,9.608e-05,2]
[344923873,1733885432462,-592.69,9.609e-05,2]
[344923874,1733885432471,-166.76,9.863e-05,2]
[344923875,1733885432480,-435.39,9.898e-05,2]
[344923876,1733885432489,-435.39,9.898e-05,2]
[344923877,1733885432498,-434.48,9.898e-05,2]
[344923878,1733885432507,-300.0,9.898e-05,2]
[344923879,1733885432522,-770.763,9.899e-05,2]
[344923880,1733885432532,-150.0,9.899e-05,2]
[344923881,1733885432542,-500.0,9.9e-05,2]
[344923882,1733885432551,-757.5821,9.9e-05,2]
[344923883,1733885432560,-899.889,9.9e-05,2]
[344923884,1733885432569,-435.39,9.9e-05,2]
[344923885,1733885432580,-36652.0487,9.9e-05,2]
[344923886,1733885432590,-596.7032,9.9e-05,2]
[344923887,1733885432600,-500.29701699,9.973e-05,2]
[344923888,1733885432609,-500.92425343,9.973e-05,2]
[344923889,1733885432618,-355.90057048,9.973e-05,2]
[344923890,1733885432627,-369.84169934,9.973e-05,2]
[344923891,1733885432637,-500.0,9.973e-05,2]
[344923892,1733885432646,-227.96979525,9.973e-05,2]
[344923893,1733885432655,-435.39,9.98e-05,2]
[344923894,1733885432664,-150.0,9.986e-05,2]
[344923895,1733885432673,-150.0,9.986e-05,2]
[344923896,1733885432682,-150.0,9.986e-05,2]
[344923897,1733885432691,-151.76008187,9.986e-05,2]
[344923898,1733885432701,-2657.426481,9.999e-05,2]
[344923899,1733885432710,-332.51311761,9.999e-05,2]
[344923900,1733885432720,-320262.84696857,0.0001,2]
[344923901,1733885432732,-54502.00000212,0.0001,2]
[344923902,1733885432776,-1001.3784,0.0001,2]
[344923903,1733885432787,-1155.58415171,0.0001,2]
[344923915,1733885433558,-4217.43984694,0.0001,2]
[344923916,1733885433572,-193972.083332,0.0001,2]
[344923917,1733885433583,-6960.0000001,0.0001,2]
[344923918,1733885433594,-508.37616336,0.0001,2]
[344923920,1733885438272,-3886.71713887,0.0001,2]
[344923933,1733885438556,-7278.48790966,0.0001,2]
[344923934,1733885438567,-4860.5,0.0001,2]
[344923935,1733885438579,-2491.38038204,0.0001,2]
[344923970,1733885440509,-1082.6497982,0.0001,2]
[344923972,1733885440523,-9778.80641057,0.0001,2]
[344923975,1733885440540,-1812.69183089,0.0001,2]
[344923976,1733885440551,-467.58350001,0.0001,2]
[344923978,1733885440562,-32172.83256238,0.0001,2]
[344924404,1733885444786,-1359.35809501,0.0001,2]
[344924406,1733885444800,-1571.72121045,0.0001,2]
[344924408,1733885444812,-4523.06076831,0.0001,2]
[344924419,1733885444908,-125.39687085,0.0001,2]
[344924421,1733885444920,-77996.17625493,0.0001,2]
[344924423,1733885444931,-32615.76247223,0.0001,2]
[344924591,1733885446528,-7987.30195745,0.0001,2]
[344924593,1733885446542,-1246.499999,0.0001,2]
[344924620,1733885446789,-4993.47451318,0.0001,2]
[344925008,1733885468310,150.0,0.00024,60]
[344925009,1733885468796,150.0,0.00024,60]
[344925010,1733885469344,150.0,0.00024,60]
[344925011,1733885469676,150.0,0.00024,60]
[344925012,1733885470134,150.0,0.00024,60]
[344925014,1733885591944,500.0,0.00023999,120]
[344925015,1733885595391,2000.0,0.00022719,120]
[344925016,1733885596238,2000.0,0.00023999,120]
[344925017,1733885604185,500.0,0.00023999,120]
[344925018,1733885610627,600.0,0.00024,60]
[344925019,1733885684512,2000.0,0.00024,120]
[344925020,1733885693543,2000.0,0.00024,60]
[344925021,1733885713461,2000.0,0.00024,60]
[344925022,1733885721690,2000.0,0.00024,60]
[344925023,1733885735609,1613.29,0.00024,60]
[344925024,1733885872946,557.18,8.219e-05,2]
[344925027,1733886191593,500.0,0.00023999,120]
[344925028,1733886195438,2000.0,0.00023292,120]
[344925029,1733886202414,500.0,0.00023999,120]
[344925030,1733886302103,289.86,0.00024,60]
[344925031,1733886302281,552.33074658,0.00024,60]
[344925050,1733886632841,-474.15,9.559e-05,2]
[344925051,1733886632852,-250.0,9.559e-05,2]
[344925052,1733886632861,-55.09480846,9.585e-05,2]
[344925053,1733886633074,-194.90519154,9.585e-05,2]
[344925054,1733886633085,-160.92,9.593e-05,2]
[344925055,1733886633095,-494.6,9.598e-05,2]
[344925056,1733886633106,-286.37,9.642e-05,2]
[344925057,1733886633116,-870.78,9.9e-05,2]
[344925058,1733886633129,-435.39,9.9e-05,2]
[344925059,1733886633139,-26335.2858,9.9e-05,2]
[344925060,1733886633149,-150.0,9.986e-05,2]
[344925061,1733886633159,-150.0,9.986e-05,2]
[344925062,1733886633169,-150.0,9.986e-05,2]
[344925063,1733886633179,-150.00000001,9.986e-05,2]
[344925064,1733886633193,-150.0,9.999e-05,2]
[344925065,1733886633204,-89451.99271299,0.0001,2]
[344925066,1733886633216,-435.39,0.0001,2]
[344925067,1733886633227,-500.0,0.0001,2]
[344925068,1733886633237,-435.39,0.0001,2]
[344925069,1733886633248,-435.39,0.0001,2]
[344925070,1733886633259,-347.99,0.0001,2]
[344925071,1733886633269,-3000.0,0.0001,2]
[344925072,1733886633279,-994.28,0.0001,2]
[344925073,1733886633290,-986.78,0.0001,2]
[344925074,1733886633300,-168.2,0.00010007,2]
[344925075,1733886633311,-150.0,0.00010072,2]
[344925078,1733886633322,-875.7,0.000101,2]
[344925081,1733886633332,-410.2412095,0.00010139,2]
[344925084,1733886633343,-150.0,0.00010157,2]
[344925087,1733886633354,-994.39,0.00010205,2]
[344925090,1733886633365,-150.0,0.00010208,2]
[344925093,1733886633375,-150.0,0.00010242,2]
[344925095,1733886633386,-150.0,0.00010264,2]
[344925097,1733886633396,-582.0,0.00010274,2]
[344925099,1733886633406,-300.77,0.00010274,2]
[344925102,1733886633417,-1002.97,0.00010305,2]
[344925104,1733886633426,-1014.31,0.00010305,2]
[344925107,1733886633439,-1019.19,0.00010305,2]
[344925110,1733886633449,-1019.02,0.00010305,2]
[344925113,1733886633459,-150.0,0.00010328,2]
[344925116,1733886633469,-1000.0,0.000104,2]
[344925119,1733886633479,-1000.0,0.000104,2]
[344925121,1733886633488,-1000.0,0.000104,2]
[344925124,1733886633498,-1000.0,0.000104,2]
[344925127,1733886633508,-1000.0,0.000104,2]
[344925130,1733886633519,-1000.0,0.000104,2]
[344925133,1733886633529,-1000.0,0.000104,2]
[344925136,1733886633539,-1000.0,0.000104,2]
[344925139,1733886633549,-1000.0,0.000104,2]
[344925142,1733886633559,-1000.0,0.000104,2]
[344925145,1733886633569,-1000.0,0.000104,2]
[344925147,1733886633579,-757.74508663,0.000104,2]
[344925150,1733886633593,-242.25491337,0.000104,2]
[344925153,1733886633604,-1000.0,0.000104,2]
[344925157,1733886633614,-732.81639976,0.000104,2]
[344925609,1733886638472,-1000.0,9.786e-05,2]
[344925611,1733886638484,-267.18360024,0.000104,2]
[344925613,1733886638494,-1000.0,0.000104,2]
[344925615,1733886638505,-1000.0,0.000104,2]
[344925619,1733886638514,-1000.0,0.000104,2]
[344925622,1733886638523,-1000.0,0.000104,2]
[344925625,1733886638533,-1000.0,0.000104,2]
[344925627,1733886638543,-1000.0,0.000104,2]
[344925628,1733886638552,-1000.0,0.000104,2]
[344925630,1733886638562,-1000.0,0.000104,2]
[344925632,1733886638572,-1000.0,0.000104,2]
[344925634,1733886638582,-1000.0,0.000104,2]
[344925635,1733886638592,-1000.0,0.000104,2]
[344925636,1733886638601,-1000.0,0.000104,2]
[344925637,1733886638611,-1000.0,0.000104,2]
[344925638,1733886638621,-1000.0,0.000104,2]
[344925639,1733886638632,-1000.0,0.000104,2]
[344925640,1733886638642,-1000.0,0.000104,2]
[344925641,1733886638651,-1000.0,0.000104,2]
[344925642,1733886638662,-1000.0,0.000104,2]
[344925643,1733886638671,-1000.0,0.000104,2]
[344925644,1733886638681,-1000.0,0.000104,2]
[344925646,1733886638694,-1000.0,0.000104,2]
[344925648,1733886638703,-1000.0,0.000104,2]
[344925650,1733886638713,-1000.0,0.000104,2]
[344925652,1733886638723,-1000.0,0.000104,2]
[344925654,1733886638732,-1000.0,0.000104,2]
[344925656,1733886638743,-1000.0,0.000104,2]
[344925658,1733886638753,-1000.0,0.000104,2]
[344925660,1733886638762,-1000.0,0.000104,2]
[344925662,1733886638772,-1000.0,0.000104,2]
[344925664,1733886638781,-1000.0,0.000104,2]
[344925666,1733886638792,-1000.0,0.000104,2]
[344925668,1733886638801,-1000.0,0.000104,2]
[344925670,1733886638811,-1000.0,0.000104,2]
[344925672,1733886638820,-1000.0,0.000104,2]
[344925674,1733886638830,-1000.0,0.000104,2]
[344925676,1733886638839,-1000.0,0.000104,2]
[344925677,1733886638848,-1000.0,0.000104,2]
[344925679,1733886638858,-1000.0,0.000104,2]
[344925682,1733886638868,-1000.0,0.000104,2]
[344925683,1733886638878,-1000.0,0.000104,2]
[344925685,1733886638888,-1000.0,0.000104,2]
[344925688,1733886638899,-1000.0,0.000104,2]
[344925689,1733886638908,-1000.0,0.000104,2]
[344925691,1733886638917,-1000.0,0.000104,2]
[344925693,1733886638926,-1000.0,0.000104,2]
[344925695,1733886638938,-1000.0,0.000104,2]
[344925697,1733886638952,-1000.0,0.000104,2]
[344925699,1733886638962,-1000.0,0.000104,2]
[344925701,1733886638972,-1000.0,0.000104,2]
[344925703,1733886638982,-1000.0,0.000104,2]
[344925705,1733886638992,-1000.0,0.000104,2]
[344925707,1733886639002,-1000.0,0.000104,2]
[344925709,1733886639012,-1000.0,0.000104,2]
[344925711,1733886639021,-1000.0,0.000104,2]
[344925713,1733886639031,-1000.0,0.000104,2]
[344925715,1733886639040,-1000.0,0.000104,2]
[344925717,1733886639050,-1000.0,0.000104,2]
[344925719,1733886639060,-1000.0,0.000104,2]
[344925721,1733886639070,-1000.0,0.000104,2]
[344925723,1733886639082,-1000.0,0.000104,2]
[344925725,1733886639092,-1000.0,0.000104,2]
[344925750,1733886639325,-1000.0,0.000104,2]
[344925752,1733886639335,-1000.0,0.000104,2]
[344925754,1733886639346,-1000.0,0.000104,2]
[344925756,1733886639356,-778.0,0.000104,2]
[344925758,1733886639366,-982.64,0.00010405,2]
[344925760,1733886639376,-150.0,0.00010413,2]
[344925762,1733886639386,-341.424,0.0001043,2]
[344925764,1733886639396,-150.0,0.0001043,2]
[344925766,1733886639406,-557.18,0.00010454,2]
[344925768,1733886639415,-150.0,0.00010498,2]
[344925770,1733886639425,-410.2412095,0.00010503,2]
[344925772,1733886639434,-811.0,0.00010526,2]
[344925774,1733886639446,-150.0,0.00010541,2]
[344925776,1733886639456,-153.0,0.00010546,2]
[344925778,1733886639466,-153.0,0.00010546,2]
[344925780,1733886639476,-153.0,0.00010546,2]
[344925782,1733886639485,-153.0,0.00010546,2]
[344925784,1733886639495,-153.0,0.00010546,2]
[344925786,1733886639505,-153.0,0.00010546,2]
[344925788,1733886639515,-153.0,0.00010546,2]
[344925790,1733886639526,-153.0,0.00010546,2]
[344925792,1733886639535,-153.0,0.00010546,2]
[344925794,1733886639545,-153.0,0.00010546,2]
[344925796,1733886639556,-153.0,0.00010546,2]
[344925798,1733886639567,-153.0,0.00010546,2]
[344925800,1733886639578,-153.0,0.00010546,2]
[344925802,1733886639588,-153.0,0.00010546,2]
[344925804,1733886639598,-153.0,0.00010546,2]